bitfinex/quotes_BTCUSD_20250221
["timestamp","ask_amount","ask_price","bid_price","bid_amount"]
[1740150546459,0.15,99129.0,99115.0,0.201784]
[1740150546661,0.15,99129.0,99118.0,0.151333]
[1740150546855,0.15,99129.0,99112.0,0.20179]
[1740150547095,0.151322,99127.0,99112.0,0.20179]
[1740150547305,0.151322,99127.0,99115.0,0.151338]
[1740150547522,0.2265,99125.0,99116.0,0.006]
[1740150547724,0.301336,99117.0,99116.0,0.006]
[1740150548122,0.151341,99114.0,99097.0,0.151366]
[1740150548378,0.001,99119.0,99098.0,0.10264569]
[1740150548581,0.201779,99118.0,99098.0,0.10264569]
[1740150548796,0.15,99117.0,99098.0,0.10264569]
[1740150549001,0.0823,99136.0,99098.0,0.1038566]
[1740150549126,0.23446685,99130.0,99098.0,0.10264569]
[1740150549341,0.151337,99117.0,99098.0,0.10264569]
[1740150549543,0.15,99126.0,99098.0,0.10264569]
[1740150549742,0.15,99119.0,99098.0,0.10264569]
[1740150549945,0.201779,99118.0,99098.0,0.10264569]
[1740150550176,0.151336,99117.0,99116.0,0.001]
[1740150550645,0.15,99119.0,99098.0,0.10264569]
[1740150550850,0.23446685,99140.0,99098.0,0.10264569]
[1740150551025,0.151325,99125.0,99107.0,0.151351]
[1740150551265,0.151323,99126.0,99108.0,0.10264569]
[1740150551470,0.201754,99131.0,99108.0,0.10264569]
[1740150551671,0.151332,99120.0,99108.0,0.10264569]
[1740150551887,0.151329,99122.0,99116.0,0.001]
[1740150552019,0.151334,99119.0,99116.0,0.001]
[1740150552231,0.151336,99117.0,99116.0,0.001]
[1740150552444,0.15,99134.0,99116.0,0.001]
[1740150552765,0.23446685,99140.0,99116.0,0.001]
[1740150552992,0.0829,99147.0,99101.0,0.01454085]
[1740150553131,0.00749807,99145.0,99123.0,0.151326]
[1740150553342,0.35922307,99145.0,99116.0,0.201781]
[1740150553554,0.15,99143.0,99117.0,0.10264569]
[1740150553751,0.151291,99147.0,99117.0,0.10264569]
[1740150553950,0.15,99147.0,99132.0,0.201751]
[1740150554197,0.151294,99145.0,99132.0,0.151312]
[1740150554403,0.002,99146.0,99132.0,0.10264569]
[1740150554601,0.002,99146.0,99132.0,0.10164569]
[1740150554751,0.0008513,99160.0,99132.0,0.10164569]
[1740150554972,0.151277,99156.0,99142.0,0.151297]
[1740150555178,0.15128,99154.0,99142.0,0.10264569]
[1740150555850,0.2357517,99160.0,99142.0,0.10264569]
[1740150556109,0.151275,99157.0,99142.0,0.10264569]
[1740150556410,0.15,99158.0,99142.0,0.10264569]
[1740150556645,0.201703,99156.0,99142.0,0.10264569]
[1740150556772,0.15,99158.0,99142.0,0.10364569]
[1740150556989,0.00128485,99160.0,99143.0,0.10264569]
[1740150557260,0.00128485,99160.0,99156.0,0.151276]
[1740150557392,0.00128485,99160.0,99150.0,0.201714]
[1740150557593,0.00128485,99160.0,99143.0,0.10264569]
[1740150557798,0.00128485,99160.0,99159.0,0.151272]
[1740150557998,0.00128485,99160.0,99159.0,0.25391769]
[1740150558981,0.00128485,99160.0,99159.0,0.10264569]
[1740150559187,0.00228485,99160.0,99159.0,0.25591769]
[1740150559425,0.00128485,99160.0,99159.0,0.25391769]
[1740150559828,0.00228485,99160.0,99159.0,0.25591769]
[1740150560030,0.00228485,99160.0,99159.0,0.10464569]
[1740150560187,0.00228485,99160.0,99159.0,0.26291769]
[1740150560661,0.00228485,99160.0,99159.0,0.26091769]
[1740150560662,0.00128485,99160.0,99159.0,0.26091769]
[1740150560794,0.00128485,99160.0,99159.0,0.25391769]
[1740150561012,0.00128485,99160.0,99159.0,0.26091769]
[1740150561512,0.00128485,99160.0,99159.0,0.27545854]
[1740150561988,0.00228485,99160.0,99159.0,0.27645854]
[1740150562351,0.00228485,99160.0,99159.0,0.26945854]
[1740150562736,0.00128485,99160.0,99159.0,0.27545854]
[1740150563125,0.00228485,99160.0,99159.0,0.26945854]
[1740150563594,0.00228485,99160.0,99159.0,0.27645854]
[1740150564242,0.00228485,99160.0,99159.0,0.26945854]
[1740150565092,0.00128485,99160.0,99159.0,0.26845854]
[1740150565546,0.00228485,99160.0,99159.0,0.27545854]
[1740150565707,0.00128485,99160.0,99159.0,0.26845854]
[1740150566130,0.00228485,99160.0,99159.0,0.28245854]
[1740150566450,0.00128485,99160.0,99159.0,0.26845854]
[1740150566621,0.00228485,99160.0,99159.0,0.27545854]
[1740150566849,0.00228485,99160.0,99159.0,0.28245854]
[1740150569688,0.00228485,99160.0,99159.0,0.11664569]
[1740150570535,0.15355485,99160.0,99159.0,0.014]
[1740150570764,0.00228485,99160.0,99159.0,0.014]
[1740150571411,0.00228485,99160.0,99159.0,0.165272]
[1740150571619,0.00128485,99160.0,99159.0,0.26091769]
[1740150572034,0.00228485,99160.0,99159.0,0.26791769]
[1740150572240,0.00228485,99160.0,99159.0,0.26091769]
[1740150572444,0.00228485,99160.0,99159.0,0.26791769]
[1740150572652,0.00128485,99160.0,99159.0,0.26091769]
[1740150572854,0.00128485,99160.0,99159.0,0.25391769]
[1740150573057,0.00228485,99160.0,99159.0,0.25991769]
[1740150573289,0.00228485,99160.0,99159.0,0.26691769]
[1740150573526,0.00128485,99160.0,99159.0,0.26091769]
[1740150574552,0.00128485,99160.0,99159.0,0.27545854]
[1740150574755,0.00228485,99160.0,99159.0,0.28245854]
[1740150575171,0.00128485,99160.0,99159.0,0.26845854]
[1740150575374,0.00128485,99160.0,99159.0,0.27545854]
[1740150575575,0.00228485,99160.0,99159.0,0.28245854]
[1740150575779,0.00128485,99160.0,99159.0,0.27545854]
[1740150576006,0.00228485,99160.0,99159.0,0.27545854]
[1740150576261,0.00228485,99160.0,99159.0,0.32465854]
[1740150576471,0.00228485,99160.0,99159.0,0.33165854]
[1740150577304,0.00228485,99160.0,99159.0,0.31711769]
[1740150577507,0.00228485,99160.0,99159.0,0.26791769]
[1740150577788,0.00128485,99160.0,99159.0,0.27545854]
[1740150577996,0.00128485,99160.0,99159.0,0.30222172]
[1740150578237,0.00128485,99160.0,99159.0,0.29522172]
[1740150578430,0.00128485,99160.0,99159.0,0.28822172]
[1740150578657,0.00128485,99160.0,99159.0,0.29522172]
[1740150579196,0.00128485,99160.0,99159.0,0.30222172]
[1740150579392,0.00128485,99160.0,99159.0,0.29522172]
[1740150579823,0.00128485,99160.0,99159.0,0.30222172]
[1740150584472,9.5e-07,99174.0,99164.0,0.02]
[1740150584670,0.00013096,99174.0,99173.0,0.41843654]
[1740150584891,9.6e-07,99174.0,99173.0,0.42735654]
[1740150585122,7.6e-07,99193.0,99192.0,0.16576185]
[1740150585328,7.6e-07,99193.0,99192.0,0.419617]
[1740150585530,7.6e-07,99193.0,99192.0,0.49550754]
[1740150585740,7.6e-07,99209.0,99208.0,0.151197]
[1740150585971,0.0008502,99238.0,99224.0,0.151173]
[1740150586162,0.00098161,99225.0,99224.0,0.25381869]
[1740150586589,0.00098161,99225.0,99224.0,0.26835954]
[1740150586793,0.00098161,99225.0,99224.0,0.25381869]
[1740150587236,0.00098161,99225.0,99224.0,0.26835954]
[1740150587870,0.00098161,99225.0,99224.0,0.27335954]
[1740150588077,0.00098161,99225.0,99224.0,0.43313229]
[1740150588531,0.00089122,99225.0,99224.0,0.43513229]
[1740150588949,0.00089122,99225.0,99224.0,0.42535954]
[1740150589358,0.00089122,99225.0,99224.0,0.4351007]
[1740150589540,0.00089122,99225.0,99224.0,0.4421007]
[1740150590350,0.00089122,99225.0,99224.0,0.43235954]
[1740150590732,0.00089122,99225.0,99224.0,0.27535954]
[1740150590935,0.00089122,99225.0,99224.0,0.26835954]
[1740150591183,0.00089122,99225.0,99224.0,0.26781869]
[1740150591399,0.00089122,99225.0,99224.0,0.11664569]
[1740150591599,0.00089122,99225.0,99224.0,0.26081869]
[1740150591814,0.00089122,99225.0,99224.0,0.10964569]
[1740150592017,0.00089122,99225.0,99224.0,0.014]
[1740150592225,0.00089122,99225.0,99224.0,0.26081869]
[1740150592438,0.00089122,99225.0,99224.0,0.25381869]
[1740150592576,0.00089122,99225.0,99224.0,0.26081869]
[1740150592980,0.00089122,99225.0,99224.0,0.26781869]
[1740150593770,0.00089122,99225.0,99224.0,0.26081869]
[1740150593963,0.00089122,99225.0,99224.0,0.26781869]
[1740150594402,0.00089122,99225.0,99224.0,0.26081869]
[1740150594621,0.00089122,99225.0,99212.0,0.02050338]
[1740150594825,0.00089122,99225.0,99224.0,0.007]
[1740150595572,0.00089122,99225.0,99213.0,0.10264569]
[1740150595772,0.00089122,99225.0,99224.0,0.007]
[1740150595972,0.15206222,99225.0,99224.0,0.007]
[1740150596394,0.15327503,99225.0,99224.0,0.007]
[1740150596818,0.30327503,99225.0,99224.0,0.007]
[1740150597021,0.30206222,99225.0,99224.0,0.007]
[1740150597259,0.30206222,99225.0,99214.0,0.0017]
[1740150597260,0.151186,99215.0,99214.0,0.0017]
[1740150597653,0.23446685,99224.0,99214.0,0.0017]
[1740150597828,0.15,99223.0,99214.0,0.0017]
[1740150598028,0.151186,99215.0,99214.0,0.0017]
[1740150598229,0.23446685,99224.0,99217.0,0.151183]
[1740150598435,0.23446685,99224.0,99214.0,0.0017]
[1740150598633,0.15,99223.0,99214.0,0.0017]
[1740150598876,0.151186,99216.0,99214.0,0.0017]
[1740150599288,0.15,99223.0,99214.0,0.0067]
[1740150599506,0.23446685,99224.0,99214.0,0.0067]
[1740150599706,0.23446685,99224.0,99214.0,0.0017]
[1740150599921,0.15,99222.0,99214.0,0.0037]
[1740150600137,0.151182,99219.0,99214.0,0.0017]
[1740150600340,0.00884,99232.0,99214.0,0.0017]
[1740150600539,0.151175,99223.0,99214.0,0.0037]
[1740150600745,0.151177,99222.0,99214.0,0.0047]
[1740150600963,0.00089122,99225.0,99214.0,0.0047]
[1740150601186,0.151181,99219.0,99214.0,0.0037]
[1740150601398,0.201568,99222.0,99214.0,0.0087]
[1740150601604,0.15089122,99225.0,99214.0,0.0087]
[1740150601832,0.151182,99218.0,99214.0,0.0067]
[1740150602047,0.15089122,99225.0,99214.0,0.0067]
[1740150602496,0.30206422,99225.0,99214.0,0.152888]
[1740150602720,0.00089122,99225.0,99216.0,0.20158]
[1740150602938,0.00089122,99225.0,99223.0,0.151174]
[1740150603158,0.00089122,99225.0,99224.0,0.10264569]
[1740150603590,0.00089122,99225.0,99224.0,0.10385497]
[1740150604008,0.00089122,99225.0,99224.0,0.11839567]
[1740150604208,0.00089122,99225.0,99224.0,0.11718654]
[1740150604812,0.00089122,99225.0,99224.0,0.12418654]
[1740150605157,0.00089122,99225.0,99224.0,0.11718654]
[1740150605552,0.00089122,99225.0,99224.0,0.13118654]
[1740150605806,0.00089122,99225.0,99224.0,0.13239567]
[1740150606801,0.00089122,99225.0,99224.0,0.13118654]
[1740150607531,0.00089122,99225.0,99224.0,0.12418654]
[1740150608158,0.00089122,99225.0,99224.0,0.12539559]
[1740150608366,0.00089122,99225.0,99224.0,0.28239559]
[1740150608572,0.00089122,99225.0,99224.0,0.43235954]
[1740150608779,0.00089122,99225.0,99224.0,0.45235174]
[1740150608988,0.00089122,99225.0,99224.0,0.50165174]
[1740150609193,0.0008512,99260.0,99248.0,0.151136]
[1740150609410,0.0008512,99260.0,99248.0,0.25378169]
[1740150609749,0.01048134,99260.0,99248.0,0.25378169]
[1740150610956,0.24494819,99260.0,99248.0,0.10964569]
[1740150611162,0.00121281,99259.0,99248.0,0.007]
[1740150611374,0.151335,99249.0,99248.0,0.014]
[1740150611789,0.0002,99249.0,99248.0,0.014]
[1740150612199,0.0002,99249.0,99248.0,0.007]
[1740150612453,0.151335,99249.0,99248.0,0.014]
[1740150612662,0.301335,99249.0,99248.0,0.014]
[1740150612880,0.15,99246.0,99218.0,0.151182]
[1740150613079,0.201533,99239.0,99219.0,0.10264569]
[1740150613340,0.151174,99224.0,99219.0,0.10264569]
[1740150613574,0.0002,99249.0,99219.0,0.10264569]
[1740150613575,0.15,99246.0,99219.0,0.10264569]
[1740150613701,0.0002,99249.0,99220.0,0.00120929]
[1740150613922,0.151141,99245.0,99224.0,0.01454085]
[1740150614200,0.15,99247.0,99225.0,0.10264569]
[1740150614397,0.15,99247.0,99226.0,0.00120923]
[1740150614603,0.15,99247.0,99228.0,0.201556]
[1740150614825,0.15,99247.0,99233.0,0.151158]
[1740150615076,0.15,99247.0,99234.0,0.10264569]
[1740150615323,0.1502,99249.0,99234.0,0.10264569]
[1740150615577,0.151136,99248.0,99234.0,0.10264569]
[1740150615795,0.15,99247.0,99234.0,0.10264569]
[1740150616028,0.15,99247.0,99236.0,0.151153]
[1740150616236,0.15,99247.0,99239.0,0.151149]
[1740150616439,0.0002,99249.0,99118.0,0.09409612]
[1740150616440,0.0002,99249.0,99246.0,0.151139]
[1740150616638,0.0002,99249.0,99247.0,0.10264569]
[1740150617057,0.0002,99249.0,99248.0,0.151136]
[1740150617265,0.0002,99249.0,99248.0,0.10264569]
[1740150617878,0.0002,99249.0,99248.0,0.25378169]
[1740150619115,0.0002,99249.0,99248.0,0.27532254]
[1740150619977,0.0002,99249.0,99248.0,0.10964569]
[1740150620176,0.0002,99249.0,99248.0,0.11664569]
[1740150620420,0.0002,99249.0,99248.0,0.1283941]
[1740150620632,0.0002,99249.0,99248.0,0.02574841]
[1740150620633,0.2285,99249.0,99248.0,0.02574841]
[1740150620845,0.2285,99249.0,99248.0,0.03274841]
[1740150621051,0.1502,99249.0,99248.0,0.03274841]
[1740150621261,0.1502,99249.0,99248.0,0.02574841]
[1740150621677,0.1502,99249.0,99227.0,0.01454085]
[1740150621885,0.15,99247.0,99232.0,0.15116]
[1740150622111,0.15,99247.0,99233.0,0.25380469]
[1740150622321,0.15,99247.0,99233.0,0.10264569]
[1740150622750,0.15,99247.0,99234.0,0.151157]
[1740150622951,0.151143,99244.0,99235.0,0.10264569]
[1740150623157,0.0002,99249.0,99248.0,0.158136]
[1740150623363,0.0002,99249.0,99248.0,0.26078169]
[1740150623562,0.0002,99249.0,99248.0,0.10264569]
[1740150624841,0.0002,99249.0,99248.0,0.15139244]
[1740150626274,0.0002,99249.0,99248.0,0.15839244]
[1740150627454,0.0002,99249.0,99248.0,0.16539244]
[1740150628532,0.0002,99249.0,99248.0,0.15839244]
[1740150628767,0.0002,99249.0,99248.0,0.16539244]
[1740150629102,0.0002,99249.0,99248.0,0.15839244]
[1740150629309,0.0002,99249.0,99248.0,0.04874675]
[1740150629509,0.00141281,99249.0,99248.0,0.05574675]
[1740150629835,0.0002,99249.0,99248.0,0.04874675]
[1740150630035,0.0002,99249.0,99248.0,0.05574675]
[1740150630392,0.0002,99249.0,99225.0,0.0016998]
[1740150630595,0.151136,99248.0,99233.0,0.151159]
[1740150630818,0.0002,99249.0,99234.0,0.10264569]
[1740150631118,0.151137,99248.0,99234.0,0.25380269]
[1740150631320,0.151139,99246.0,99234.0,0.10264569]
[1740150631857,0.15235381,99245.0,99234.0,0.10264569]
[1740150632068,0.15235381,99245.0,99229.0,0.201552]
[1740150632069,0.151145,99243.0,99229.0,0.151164]
[1740150632323,0.151146,99242.0,99234.0,0.005]
[1740150632483,0.15235881,99242.0,99234.0,0.005]
[1740150632706,0.15115,99239.0,99234.0,0.005]
[1740150632911,0.15115,99239.0,99234.0,0.011]
[1740150633110,0.151156,99236.0,99234.0,0.011]
[1740150633315,0.151156,99236.0,99234.0,0.005]
[1740150633510,0.15116,99233.0,99218.0,0.151181]
[1740150633712,0.151169,99227.0,99214.0,0.0017]
[1740150634414,0.00121281,99226.0,99214.0,0.0017]
[1740150634585,0.151169,99227.0,99214.0,0.0017]
[1740150634816,0.151169,99227.0,99225.0,0.0086998]
[1740150635124,0.151169,99227.0,99225.0,0.0016998]
[1740150635352,0.23446685,99240.0,99225.0,0.0016998]
[1740150635353,0.15,99237.0,99225.0,0.0086998]
[1740150635713,0.23446685,99240.0,99225.0,0.0086998]
[1740150635714,0.151169,99227.0,99225.0,0.0086998]
[1740150636451,0.151168,99228.0,99225.0,0.0086998]
[1740150636654,0.201552,99230.0,99225.0,0.0086998]
[1740150636863,0.151169,99227.0,99225.0,0.0016998]
[1740150637163,0.15,99239.0,99225.0,0.0146998]
[1740150637370,0.151165,99229.0,99225.0,0.0146998]
[1740150637569,0.15,99239.0,99225.0,0.0086998]
[1740150637814,0.151168,99228.0,99225.0,0.0086998]
[1740150638035,0.201554,99229.0,99225.0,0.0136998]
[1740150638246,0.201527,99242.0,99225.0,0.0136998]
[1740150638459,0.111788,99250.0,99226.0,0.10264569]
[1740150638666,0.0475,99259.0,99227.0,0.00120923]
[1740150638667,0.00756732,99257.0,99227.0,0.00120923]
[1740150638966,0.00756732,99257.0,99236.0,0.151154]
[1740150639171,0.151138,99247.0,99236.0,0.151154]
[1740150639370,0.151138,99247.0,99234.0,0.201543]
[1740150639579,0.151138,99247.0,99235.0,0.25380069]
[1740150639783,0.201503,99254.0,99235.0,0.10264569]
[1740150639980,0.201502,99255.0,99235.0,0.10264569]
[1740150640185,0.00756732,99257.0,99235.0,0.10264569]
[1740150640417,0.151131,99252.0,99235.0,0.10264569]
[1740150640728,0.01088364,99260.0,99235.0,0.10264569]
[1740150640915,0.01088364,99260.0,99247.0,0.151136]
[1740150641122,0.01088364,99260.0,99248.0,0.25378169]
[1740150641749,0.0008512,99260.0,99248.0,0.26832254]
[1740150642746,0.0008512,99260.0,99248.0,0.27532254]
[1740150643630,0.0008512,99260.0,99248.0,0.28232254]
[1740150644162,0.0008512,99260.0,99248.0,0.12418654]
[1740150644453,0.23531805,99260.0,99248.0,0.10964569]
[1740150644666,0.00121281,99259.0,99248.0,0.11664569]
[1740150644881,0.0008512,99260.0,99248.0,0.11664569]
[1740150645050,0.0008512,99260.0,99248.0,0.11839554]
[1740150645265,0.0008512,99260.0,99248.0,0.1323954]
[1740150645691,0.0008512,99260.0,99248.0,0.1253954]
[1740150645881,0.0008512,99260.0,99248.0,0.13118654]
[1740150646681,0.0008512,99260.0,99248.0,0.12418654]
[1740150647294,0.0008512,99260.0,99248.0,0.10964569]
[1740150647512,0.0008512,99260.0,99248.0,0.11664569]
[1740150647722,0.0008512,99260.0,99248.0,0.13118654]
[1740150648395,0.0008512,99260.0,99248.0,0.28232254]
[1740150649152,0.0008512,99260.0,99248.0,0.11664569]
[1740150649443,0.201507,99252.0,99248.0,0.11664569]
[1740150649642,0.1521849,99249.0,99248.0,0.014]
[1740150649973,0.0010499,99249.0,99248.0,0.014]
[1740150650395,0.0010499,99249.0,99248.0,0.11664569]
[1740150650567,0.0010499,99249.0,99248.0,0.26078169]
[1740150650777,0.0010499,99249.0,99248.0,0.28232254]
[1740150651209,0.0010499,99249.0,99248.0,0.27532254]
[1740150651988,0.0010499,99249.0,99248.0,0.28232254]
[1740150652416,0.0010499,99249.0,99248.0,0.27532254]
[1740150652729,0.0010499,99249.0,99248.0,0.11664569]
[1740150653624,0.0010499,99249.0,99248.0,0.10264569]
[1740150654118,0.0010499,99249.0,99248.0,0.10964569]
[1740150654374,0.0010499,99249.0,99248.0,0.10264569]
[1740150654584,0.0010499,99249.0,99248.0,0.25378169]
[1740150654702,0.0010499,99249.0,99248.0,0.26078169]
[1740150654899,0.0010499,99249.0,99248.0,0.27532254]
[1740150655116,0.0010499,99249.0,99248.0,0.10964569]
[1740150655518,0.0010499,99249.0,99248.0,0.26778169]
[1740150655830,0.0010499,99249.0,99248.0,0.27532254]
[1740150656027,0.0010499,99249.0,99248.0,0.28232254]
[1740150657477,0.0010499,99249.0,99248.0,0.43232254]
[1740150657714,0.0010499,99249.0,99248.0,0.47842254]
[1740150657948,0.0010499,99249.0,99248.0,0.49842254]
[1740150658354,0.0010499,99249.0,99248.0,0.49142254]
[1740150658564,0.0010499,99249.0,99248.0,0.49842254]
[1740150658771,0.0008496,99269.0,99268.0,0.151106]
[1740150659087,0.00128299,99269.0,99268.0,0.41829254]
[1740150660135,0.00128299,99269.0,99268.0,0.42529254]
[1740150660949,0.0008493,99300.0,99288.0,0.151075]
[1740150661158,0.00032993,99289.0,99288.0,0.26826154]
[1740150661354,0.00032993,99289.0,99288.0,0.10264569]
[1740150661782,0.00032993,99289.0,99288.0,0.11839499]
[1740150661996,0.00032993,99289.0,99288.0,0.11718654]
[1740150662192,0.00032993,99289.0,99288.0,0.11839483]
[1740150662557,0.00032993,99289.0,99288.0,0.29607822]
[1740150662692,0.0008493,99300.0,99299.0,0.301058]
[1740150662896,0.0008493,99300.0,99299.0,0.42756454]
[1740150663135,0.0008493,99300.0,99299.0,0.48352188]
[1740150663338,0.0008493,99300.0,99299.0,0.45575221]
[1740150664229,0.0008493,99300.0,99299.0,0.42756454]
[1740150664456,0.0008493,99300.0,99299.0,0.12650654]
[1740150664689,0.0008493,99300.0,99299.0,0.13350654]
[1740150665762,0.0008493,99300.0,99299.0,0.12418654]
[1740150666703,0.0008493,99300.0,99299.0,0.11718654]
[1740150666906,0.0008493,99300.0,99299.0,0.34793793]
[1740150667106,0.0008493,99300.0,99299.0,0.35493793]
[1740150667321,0.0008493,99300.0,99299.0,0.37493793]
[1740150667940,0.0008493,99300.0,99299.0,0.35493793]
[1740150668155,0.0008493,99300.0,99299.0,0.3749843]
[1740150668423,0.0008493,99300.0,99299.0,0.40403812]
[1740150668661,9e-07,99321.0,99311.0,0.02]
[1740150668872,0.00013074,99321.0,99320.0,0.49896393]
[1740150669086,0.00560976,99325.0,99324.0,0.30102]
[1740150669357,0.00560976,99325.0,99324.0,0.42752654]
[1740150669567,0.00560976,99325.0,99324.0,0.48257087]
[1740150669790,1e-06,99329.0,99328.0,0.45965485]
[1740150670000,1e-06,99329.0,99328.0,0.56230054]
[1740150671006,0.0008502,99338.0,99337.0,0.33554185]
[1740150671007,2e-07,99338.0,99337.0,0.33554185]
[1740150671255,2e-07,99338.0,99337.0,1.71217931]
[1740150671457,2e-07,99338.0,99337.0,1.68195611]
[1740150671641,2e-07,99338.0,99337.0,1.65429894]
[1740150672557,0.03657425,99413.0,99355.0,0.02]
[1740150672763,0.03657425,99413.0,99380.0,0.23446685]
[1740150672980,0.03700748,99413.0,99381.0,0.12771375]
[1740150673220,0.03700748,99413.0,99389.0,0.01454085]
[1740150673221,0.04708532,99413.0,99389.0,0.01454085]
[1740150673429,0.04708532,99413.0,99381.0,0.00932]
[1740150673430,0.04708532,99413.0,99390.0,0.10264569]
[1740150673855,0.04708532,99413.0,99391.0,0.01454085]
[1740150674039,0.201187,99410.0,99392.0,0.10264569]
[1740150674158,0.00121281,99409.0,99392.0,0.10264569]
[1740150674364,0.150899,99405.0,99392.0,0.10264569]
[1740150674632,0.04708532,99413.0,99392.0,0.10264569]
[1740150674838,0.00121281,99412.0,99392.0,0.10264569]
[1740150675010,0.23446685,99402.0,99381.0,0.001]
[1740150675213,0.00121281,99401.0,99382.0,0.10264569]
[1740150675418,0.201208,99400.0,99392.0,0.004]
[1740150675729,0.150896,99406.0,99393.0,0.10264569]
[1740150675923,0.15,99407.0,99393.0,0.10264569]
[1740150676227,0.04708532,99413.0,99395.0,0.01454085]
[1740150676432,0.04708532,99413.0,99397.0,0.01454085]
[1740150676640,0.04708532,99413.0,99398.0,0.25355369]
[1740150676849,0.04708532,99413.0,99399.0,0.01454085]
[1740150677084,0.03700748,99413.0,99412.0,0.150887]
[1740150677291,0.03700748,99413.0,99412.0,0.10264569]
[1740150677499,0.03700748,99413.0,99395.0,0.001]
[1740150677708,0.03700748,99413.0,99396.0,0.10264569]
[1740150677888,0.03700748,99413.0,99397.0,0.01454085]
[1740150678096,0.03700748,99413.0,99395.0,0.001]
[1740150678097,0.00121281,99412.0,99398.0,0.10264569]
[1740150678257,0.150892,99409.0,99399.0,0.005]
[1740150678452,0.150898,99405.0,99400.0,0.10264569]
[1740150678709,0.0774,99409.0,99395.0,0.001]
[1740150678905,0.150906,99400.0,99396.0,0.10264569]
[1740150679081,0.124,99409.0,99396.0,0.10264569]
[1740150679283,0.03785678,99413.0,99396.0,0.10264569]
[1740150680088,0.201184,99412.0,99396.0,0.10264569]
[1740150680309,0.201184,99412.0,99396.0,0.10764569]
[1740150680723,0.03785678,99413.0,99396.0,0.10764569]
[1740150680894,0.150888,99412.0,99396.0,0.11064569]
[1740150681092,0.15,99412.0,99396.0,0.11064569]
[1740150681366,0.150887,99412.0,99396.0,0.11064569]
[1740150681994,0.03785678,99413.0,99396.0,0.11064569]
[1740150682235,0.00121281,99412.0,99396.0,0.11064569]
[1740150682405,0.03785678,99413.0,99396.0,0.11064569]
[1740150682628,0.03785678,99413.0,99397.0,0.01454085]
[1740150682840,0.03785678,99413.0,99401.0,0.01454085]
[1740150683053,0.03785678,99413.0,99412.0,0.150887]
[1740150683269,0.03785678,99413.0,99412.0,0.25353269]
[1740150683466,0.03785678,99413.0,99412.0,0.26807354]
[1740150684047,0.03785678,99413.0,99412.0,0.294725]
[1740150684253,0.03785678,99413.0,99412.0,0.27207354]
[1740150684860,0.0002,99489.0,99413.0,0.01454085]
[1740150685086,0.0002,99489.0,99424.0,0.21569885]
[1740150685087,0.00012988,99425.0,99424.0,0.21569885]
[1740150685468,0.00012988,99425.0,99424.0,0.31834454]
[1740150686106,0.00012988,99425.0,99424.0,0.11718654]
[1740150686317,0.00012988,99425.0,99424.0,0.12418654]
[1740150686951,0.00012988,99425.0,99424.0,0.13239321]
[1740150687168,0.00012988,99425.0,99424.0,0.1178523]
[1740150687374,0.00012988,99425.0,99424.0,0.11664569]
[1740150687979,0.15099688,99425.0,99424.0,0.11664569]
[1740150688193,0.00012988,99425.0,99424.0,0.11664569]
[1740150689212,0.00012988,99425.0,99424.0,0.007]
[1740150689420,0.00134269,99425.0,99424.0,0.007]
[1740150689630,0.00012988,99425.0,99424.0,0.014]
[1740150689835,0.00012988,99425.0,99424.0,0.007]
[1740150690261,0.00012988,99425.0,99424.0,0.10964569]
[1740150690463,0.00012988,99425.0,99424.0,0.10264569]
[1740150690666,0.00012988,99425.0,99424.0,0.11664569]
[1740150691243,0.00012988,99425.0,99424.0,0.28205554]
[1740150691432,0.00097818,99425.0,99424.0,0.28205554]
[1740150691867,0.00097818,99425.0,99424.0,0.27505554]
[1740150692098,0.00097818,99425.0,99424.0,0.28205554]
[1740150692468,0.00097818,99425.0,99424.0,0.27505554]
[1740150692664,0.00097818,99425.0,99424.0,0.25351469]
[1740150692866,0.00097818,99425.0,99424.0,0.27505554]
[1740150693515,0.00097818,99425.0,99424.0,0.26805554]
[1740150693893,0.00097818,99425.0,99424.0,0.27505554]
[1740150694187,0.00097818,99425.0,99424.0,0.10964569]
[1740150694585,0.00097818,99425.0,99424.0,0.27505554]
[1740150695408,0.00097818,99425.0,99424.0,0.28205554]
[1740150696485,0.00097818,99425.0,99424.0,0.26751469]
[1740150696904,0.15184518,99425.0,99424.0,0.11664569]
[1740150697120,0.15184518,99425.0,99424.0,0.014]
[1740150697736,0.15184518,99425.0,99424.0,0.007]
[1740150698298,0.150885,99413.0,99401.0,0.150903]
[1740150698499,0.150885,99413.0,99402.0,0.150902]
[1740150698707,0.00097818,99425.0,99390.0,0.22604]
[1740150698910,0.201164,99422.0,99390.0,0.24058085]
[1740150699106,0.150884,99414.0,99390.0,0.24058085]
[1740150699310,0.00097818,99425.0,99413.0,0.10264569]
[1740150699682,0.150875,99420.0,99413.0,0.10264569]
[1740150699886,0.150874,99421.0,99413.0,0.10264569]
[1740150700217,0.201164,99421.0,99412.0,0.0056966]
[1740150700562,0.201158,99424.0,99412.0,0.0056966]
[1740150700770,0.00097818,99425.0,99412.0,0.0056966]
[1740150700994,0.150885,99413.0,99412.0,0.0056966]
[1740150701966,0.23446685,99430.0,99412.0,0.10157373]
[1740150702378,0.15,99423.0,99413.0,0.014]
[1740150702593,0.15,99429.0,99414.0,0.10264569]
[1740150702796,0.150875,99420.0,99414.0,0.10264569]
[1740150702997,0.150876,99420.0,99414.0,0.10264569]
[1740150703204,0.150877,99419.0,99414.0,0.10264569]
[1740150703310,0.15,99423.0,99414.0,0.09589017]
[1740150703534,0.00097818,99425.0,99414.0,0.09589017]
[1740150703739,0.00097818,99425.0,99415.0,0.01454085]
[1740150703948,0.00097818,99425.0,99416.0,0.10264569]
[1740150704147,0.00097818,99425.0,99418.0,0.01454085]
[1740150704351,0.00097818,99425.0,99419.0,0.10385254]
[1740150704773,0.00097818,99425.0,99424.0,0.150869]
[1740150704976,0.00097818,99425.0,99424.0,0.25351469]
[1740150705178,0.00097818,99425.0,99424.0,0.10264569]
[1740150705645,0.00097818,99425.0,99414.0,0.004]
[1740150705780,0.00097818,99425.0,99415.0,0.10264569]
[1740150706163,0.150878,99418.0,99415.0,0.10264569]
[1740150706382,0.15184518,99425.0,99424.0,0.004]
[1740150706830,0.201158,99424.0,99415.0,0.10264569]
[1740150707041,0.150873,99421.0,99415.0,0.10264569]
[1740150707303,0.150877,99419.0,99415.0,0.11064569]
[1740150707493,0.20213418,99425.0,99415.0,0.11064569]
[1740150707718,0.00097818,99425.0,99415.0,0.11064569]
[1740150708134,0.150881,99416.0,99415.0,0.008]
[1740150708466,0.150881,99416.0,99415.0,0.005]